fUSD/lending_fUSD_20240320
["ID","MTS","AMOUNT","RATE_DAILY","PERIOD"]
[319620346,1710892861168,178.87155136,0.000139,2]
[319620347,1710892878982,222.51076452,0.00013897,2]
[319620348,1710892885180,222.51076452,0.000139,2]
[319620349,1710892897273,4984.1732,0.00013899,2]
[319620350,1710892917348,3222.38293887,0.000139,2]
[319620351,1710893017423,1187.58695703,0.000139,2]
[319620373,1710893347036,151.24441476,0.00013897,2]
[319620378,1710893352006,151.24441476,0.00013897,2]
[319620394,1710893356978,151.24441476,0.00013897,2]
[319620395,1710893361992,151.24441476,0.00013898,2]
[319620396,1710893366995,151.24441476,0.00013898,2]
[319620397,1710893371983,151.24441476,0.00013898,2]
[319620404,1710893376990,151.24441476,0.00013898,2]
[319620405,1710893381980,151.24441476,0.00013898,2]
[319620406,1710893387079,151.24441476,0.00013898,2]
[319620407,1710893391985,151.24441476,0.00013899,2]
[319620408,1710893396999,151.24441476,0.00013899,2]
[319620412,1710893402000,151.24441476,0.00013899,2]
[319620413,1710893406985,151.24441476,0.00013899,2]
[319620414,1710893412003,151.24441476,0.00013899,2]
[319620415,1710893416991,151.24441476,0.00013899,2]
[319620416,1710893422023,151.24441476,0.000139,2]
[319620417,1710893426979,151.24441476,0.000139,2]
[319620425,1710893431989,151.24441476,0.000139,2]
[319620426,1710893432002,-658.74639374,0.00013997,2]
[319620427,1710893432011,-1013.65473484,0.00013997,2]
[319620428,1710893432020,-128.47038048,0.00013997,2]
[319620429,1710893432032,-495.66251952,0.00013997,2]
[319620430,1710893432041,-150.0,0.00013997,2]
[319620431,1710893432051,-1053.4426883,0.00013998,2]
[319620432,1710893432060,-723.79534939,0.00013998,2]
[319620433,1710893432069,-776.98771204,0.00013999,2]
[319620434,1710893432095,-399.48910203,0.00013999,2]
[319620435,1710893432111,-285000.0,0.00013999,2]
[319620436,1710893432122,-910.89973346,0.00013999,2]
[319620437,1710893432133,-493.68515,0.00013999,2]
[319620438,1710893432156,-1109.61862613,0.00013999,2]
[319620448,1710893437919,-1248.19,0.00013999,2]
[319620449,1710893437985,-645.88539279,0.00013999,2]
[319620450,1710893437997,-21790.3485207,0.00013999,2]
[319620451,1710893438008,-1741.31701954,0.00013999,2]
[319620452,1710893438020,-251.60714365,0.00013999,2]
[319620453,1710893438031,-1059.53492,0.00013999,2]
[319620454,1710893438071,-89630.27123043,0.00013999,2]
[319620455,1710893438100,-18979.42217405,0.00013999,2]
[319620456,1710893438111,-1821.8199679,0.00013999,2]
[319620457,1710893438124,-3069.28528433,0.00013999,2]
[319620458,1710893438136,-594302.723057,0.00013999,2]
[319620459,1710893438147,-210600.80945975,0.00014,2]
[319620460,1710893438160,-261.89255077,0.00014999,2]
[319620461,1710893438172,-657278.24966776,0.00015,2]
[319620462,1710893438182,-1746.86131302,0.00015,2]
[319620463,1710893438193,-2986.69582095,0.00015,2]
[319620464,1710893438204,-166.0,0.00015397,2]
[319620466,1710893438215,-1187.58695692,0.00018355,2]
[319620467,1710893438225,-500.0,0.00019,2]
[319620468,1710893438235,-3222.38293887,0.00019757,2]
[319620469,1710893438247,-499.99,0.00019757,2]
[319620470,1710893438258,-787.81400007,0.000199,2]
[319620471,1710893438268,-779.74941329,0.00022,2]
[319620472,1710893438277,-155.0,0.00022,2]
[319620473,1710893438287,-3001.38049113,0.00022114,2]
[319620474,1710893438300,-596.05964064,0.00022114,2]
[319620475,1710893438312,-277.0527081,0.00022114,2]
[319620476,1710893438324,-3582.68331864,0.00022114,2]
[319620508,1710893439992,-58702.80386161,0.00022114,2]
[319620509,1710893440004,-621.62,0.00022114,2]
[319620510,1710893440039,-2479.60097988,0.00022114,2]
[319620511,1710893440049,-158.24,0.00022208,2]
[319620512,1710893440058,-1187.58695692,0.00022809,2]
[319620513,1710893440068,-250.0,0.00023,3]
[319620514,1710893440077,-519.84,0.00023814,2]
[319620515,1710893440086,-250.0,0.00023884,2]
[319620516,1710893440096,-250.0,0.00023987,2]
[319620517,1710893440105,-166.46,0.00023987,2]
[319620518,1710893440114,-23900.0,0.00024021,2]
[319620519,1710893440124,-3984.87,0.00024024,2]
[319620520,1710893440133,-158.32,0.00024097,10]
[319620521,1710893440143,-250.0,0.00024583,2]
[319620522,1710893440153,-150.0,0.000246,2]
[319620523,1710893440169,-300.0,0.00025,3]
[319620524,1710893440178,-613.55418598,0.00025,2]
[319620525,1710893440188,-3222.38293887,0.00025614,2]
[319620526,1710893440197,-166.36326106,0.00026,27]
[319620527,1710893440207,-788.0,0.000263,3]
[319620528,1710893440217,-1163.0,0.00026869,2]
[319620529,1710893440227,-350.0,0.00027,3]
[319620530,1710893440236,-158.32,0.00027259,10]
[319620531,1710893440245,-1187.58695692,0.00027264,2]
[319620532,1710893440255,-200.0,0.00027281,2]
[319620533,1710893440264,-150.0,0.00027397,2]
[319620534,1710893440274,-6203.59434872,0.0002779,7]
[319620535,1710893440285,-637.70178208,0.0002779,7]
[319620536,1710893440297,-45940.76311812,0.0002779,7]
[319620537,1710893440311,-446.82755966,0.0002779,7]
[319620538,1710893440322,-299.82681749,0.0002779,7]
[319620539,1710893440336,-6207.5,0.0002779,7]
[319620540,1710893440354,-1408.33607207,0.0002779,7]
[319620541,1710893440366,-835.95418073,0.0002779,7]
[319620542,1710893440377,-366.39228656,0.0002779,7]
[319620543,1710893440388,-6691.65933455,0.0002779,7]
[319620544,1710893440399,-506.87153115,0.0002779,7]
[319620545,1710893440415,-608.2336114,0.0002779,7]
[319620546,1710893440427,-1854.00021,0.0002779,7]
[319620547,1710893440438,-3006.1558,0.0002779,7]
[319620566,1710893443003,-2465.83987276,0.0002779,7]
[319620567,1710893443015,-10001.5759092,0.0002779,7]
[319620568,1710893443027,-11505.96605408,0.0002779,7]
[319620570,1710893443206,-257.08898764,0.0002779,7]
[319620571,1710893443230,-5753.72585808,0.0002779,7]
[319620572,1710893443317,-4815.25623061,0.0002779,7]
[319620573,1710893443335,-7730.76005492,0.0002779,7]
[319620574,1710893443359,-4007.64744416,0.0002779,7]
[319620575,1710893443371,-1920.83430854,0.0002779,7]
[319620657,1710893445987,-1832.94427101,0.0002779,7]
[319620658,1710893446192,-888.84888356,0.0002779,7]
[319620659,1710893446205,-4180.0,0.0002779,7]
[319620660,1710893446217,-3441.33904711,0.0002779,7]
[319620661,1710893446229,-5294.48284217,0.0002779,7]
[319620662,1710893446241,-16024.10701487,0.0002779,7]
[319620663,1710893446254,-3110.1,0.0002779,7]
[319620664,1710893465981,453.72138966,0.00012597,2]
[319620665,1710893469869,449.14958006,0.00013157,2]
[319620666,1710893489649,39732.9048,0.00013899,2]
[319620676,1710893528942,60330.0204,0.00013899,2]
[319620678,1710893572420,16796.6688,0.00013899,2]
[319620679,1710893584663,1000.0,0.00013899,2]
[319620680,1710893602175,178.31,0.000136,2]
[319620681,1710893612450,563.8,0.00014589,3]
[319620682,1710893633613,2223.814,0.00013899,2]
[319620683,1710893664070,442.2756,0.00013899,2]
[319620686,1710893741943,291.06,0.00013224,2]
[319620687,1710893762174,2751.0,0.00013699,2]
[319620688,1710893767070,260.57,0.00013699,2]
[319620689,1710893768609,260.57,0.00013836,2]
[319620690,1710893775465,580.86,0.00013212,2]
[319620691,1710893785963,174.58,0.00013224,2]
[319620692,1710893809831,500.0,0.00013699,2]
[319620693,1710893819368,16796.6688,0.00013888,2]
[319620694,1710893853116,2313.17,0.00013699,2]
[319620702,1710893878153,250.0,0.00013157,2]
[319620703,1710893878966,10000.0,0.00013699,2]
[319620704,1710893879942,200.0,0.00013157,2]
[319620705,1710893890161,641.78,0.00013141,2]
[319620706,1710893928626,161.55,0.00011251,2]
[319620707,1710893944117,232.0,0.00013134,2]
[319620708,1710893949480,5000.0,0.00013699,2]
[319620709,1710893984224,175.03,0.00013699,2]
[319620711,1710894035448,532.09,0.0001305,2]
[319620712,1710894038517,45037.0,0.0001305,2]
[319620713,1710894049005,23900.0,0.0001305,2]
[319620714,1710894060041,10984.58,0.0001304,2]
[319620715,1710894075787,150.0,0.000136,2]
[319620716,1710894081126,14733.0463,0.00013814,2]
[319620717,1710894081175,150.0,0.0001308,2]
[319620718,1710894082636,440.07,0.00013178,2]
[319620719,1710894082908,440.07,0.00013214,2]
[319620720,1710894083130,440.07,0.0001325,2]
[319620721,1710894083359,440.07,0.00013286,2]
[319620722,1710894083559,440.07,0.00013322,2]
[319620723,1710894083844,440.07,0.00013358,2]
[319620724,1710894084054,440.07,0.00013395,2]
[319620725,1710894084521,440.07,0.00013431,2]
[319620726,1710894084727,440.07,0.00013467,2]
[319620727,1710894084949,440.07,0.00013503,2]
[319620728,1710894085170,440.07,0.00013539,2]
[319620729,1710894085612,440.07,0.00013575,2]
[319620730,1710894085842,440.07,0.00013611,2]
[319620731,1710894086044,440.07,0.00013648,2]
[319620732,1710894086266,440.07,0.00013684,2]
[319620733,1710894086691,440.07,0.0001372,2]
[319620734,1710894086901,440.07,0.00013756,2]
[319620735,1710894087148,440.07,0.00013792,2]
[319620736,1710894087558,440.07,0.00013828,2]
[319620737,1710894087595,440.07,0.00013864,2]
[319620738,1710894090535,1053.4426883,0.00013502,2]
[319620739,1710894091584,342.89838954,0.00013901,2]
[319620740,1710894107735,653.95,0.00013083,2]
[319620741,1710894109557,342.89838954,0.00013901,2]
[319620742,1710894111099,206.20209918,0.00013901,2]
[319620743,1710894113038,8207.34,0.00013073,2]
[319620744,1710894114534,412.81231721,0.00013901,2]
[319620745,1710894118398,200.0,0.00013699,2]
[319620746,1710894122025,155.0,0.00013901,2]
[319620747,1710894123252,236.00919875,0.00013901,2]
[319620748,1710894126052,185.67396552,0.00013901,2]
[319620749,1710894127096,289.33965114,0.00013901,2]
[319620750,1710894127339,250.0,0.00013699,2]
[319620751,1710894129670,5507.51645168,0.00013901,2]
[319620752,1710894130332,1585.93280439,0.00013901,2]
[319620753,1710894130909,155.0,0.00013901,2]
[319620754,1710894134304,2165.35441959,0.00013901,2]
[319620755,1710894137109,235.90677381,0.00013901,2]
[319620757,1710894140021,155.0,0.00013901,2]
[319620758,1710894143024,431.4931,0.00013873,2]
[319620759,1710894143694,2019.80871717,0.00013901,2]
[319620760,1710894146325,1587.12290781,0.00013901,2]
[319620761,1710894148495,1053.13673053,0.00013901,2]
[319620762,1710894152226,579.50362212,0.00013901,2]
[319620763,1710894152908,155.0,0.00013901,2]
[319620764,1710894162199,500.0,0.00013699,2]
[319620765,1710894166512,315.32900308,0.00013901,2]
[319620766,1710894171462,150.01,0.00013104,2]
[319620767,1710894195130,3870.6,0.00013104,2]
[319620768,1710894216130,150.0,0.00013699,2]
[319620769,1710894220366,178.31,0.000136,2]
[319620770,1710894221199,2751.0,0.00013699,2]
[319620771,1710894226117,119584.04922729,0.0001369,2]
[319620778,1710894449892,161.55,0.00011187,2]
[319620806,1710894632113,-972.57464842,0.00013006,2]
[319620807,1710894632124,-564.04,0.00013007,2]
[319620808,1710894632134,-763.38535158,0.00013102,2]
[319620809,1710894632183,-22424.9015243,0.00013102,2]
[319620810,1710894632193,-15704.06257674,0.00013103,2]
[319620811,1710894632206,-10468.8,0.00013103,2]
[319620812,1710894632220,-5741.75785207,0.00013103,2]
[319620813,1710894632269,-4330.54918283,0.00013103,2]
[319620814,1710894632286,-6645.41720646,0.00013103,2]
[319620815,1710894632297,-235.95798628,0.00013111,2]
[319620816,1710894632307,-150.0,0.00013111,2]
[319620817,1710894632319,-23900.0,0.00013113,2]
[319620818,1710894632328,-215.62480726,0.0001317,2]
[319620819,1710894632341,-34.37519274,0.0001317,2]
[319620820,1710894632350,-170.89784069,0.0001359,2]
[319620821,1710894632360,-150.0,0.000136,2]
[319620822,1710894632370,-500.0,0.00013699,2]
[319620823,1710894632379,-1156.58,0.00013699,2]
[319620824,1710894632392,-8707.17802949,0.00013699,2]
[319620825,1710894632404,-403.89687421,0.00013699,2]
[319620826,1710894632417,-888.9250963,0.00013699,2]
[319620827,1710894632426,-1163.14540371,0.00013699,2]
[319620840,1710894638154,-630.55,0.00013699,2]
[319620841,1710894638283,-3206.30459629,0.00013699,2]
[319620842,1710894638292,-250.0,0.00013699,2]
[319620843,1710894638301,-260.57,0.00013699,2]
[319620844,1710894638311,-5994.61,0.00013699,2]
[319620845,1710894638321,-999.99,0.00013699,2]
[319620846,1710894638330,-831.91,0.00013699,2]
[319620847,1710894638340,-170.89784069,0.00013732,2]
[319620848,1710894638351,-336.51,0.00013732,2]
[319620849,1710894638361,-499.99,0.00013732,2]
[319620850,1710894638371,-150.99,0.00013732,2]
[319620851,1710894638380,-8693.0,0.00013777,2]
[319620852,1710894638389,-260.57,0.00013836,2]
[319620853,1710894638398,-170.89784069,0.00013873,2]
[319620854,1710894638409,-1000.0,0.00013899,2]
[319620856,1710894638418,-1022.14,0.00013938,2]
[319620857,1710894638428,-455.3,0.00013938,2]
[319620858,1710894638437,-1403.35350734,0.00013958,2]
[319620859,1710894638446,-268.02,0.00013958,2]
[319620860,1710894638456,-521.06,0.00013958,2]
[319620861,1710894638465,-488.8,0.00013958,2]
[319620862,1710894638475,-254.85,0.00013958,2]
[319620864,1710894638485,-1826.12,0.00013973,2]
[319620866,1710894638495,-4040.97,0.00013973,2]
[319620867,1710894638505,-9999.99,0.00013973,2]
[319620868,1710894638514,-260.57,0.00013973,2]
[319620869,1710894638524,-1022.14,0.00013975,2]
[319620870,1710894638536,-150.99,0.00013975,2]
[319620871,1710894638545,-261.89255077,0.00013985,2]
[319620872,1710894638555,-22752.97822048,0.00013987,2]
[319620873,1710894638565,-6106.31460113,0.00013992,2]
[319620875,1710894638574,-678.98981162,0.00013996,2]
[319620876,1710894638583,-258.93254516,0.00013996,2]
[319620877,1710894638592,-3603.95060531,0.00013997,2]
[319620878,1710894638601,-2716.7572,0.00014009,2]
[319620879,1710894638611,-1022.14,0.00014011,2]
[319620880,1710894638620,-170.89784069,0.00014015,2]
[319620881,1710894638629,-1022.14,0.00014048,2]
[319620882,1710894638638,-1022.14,0.00014085,2]
[319620883,1710894638648,-519.83,0.0001411,2]
[319620884,1710894638657,-1022.14,0.00014121,2]
[319620885,1710894638666,-178.31,0.00014148,2]
[319620886,1710894638676,-170.89784069,0.00014156,2]
[319620887,1710894638685,-1022.14,0.00014158,2]
[319620888,1710894638694,-1022.14,0.00014195,2]
[319620889,1710894638703,-1022.14,0.00014231,2]
[319620890,1710894638713,-150.0,0.00014247,2]
[319620891,1710894638722,-1022.14,0.00014268,2]
[319620892,1710894638731,-1770.26564204,0.00014298,2]
[319620893,1710894638740,-170.89784069,0.00014298,2]
[319620894,1710894638749,-4940.84982518,0.00014298,2]
[319620895,1710894638764,-346.83201629,0.00014298,2]
[319620896,1710894638787,-660.29643184,0.00014298,2]
[319620897,1710894638796,-1022.14,0.00014305,2]
[319620898,1710894638805,-1022.14,0.00014341,2]
[319620899,1710894638815,-1770.26564201,0.00014349,2]
[319620900,1710894638824,-1022.14,0.00014378,2]
[319620901,1710894638834,-836.86932583,0.00014387,2]
[319620902,1710894638843,-163.52,0.00014389,2]
[319620903,1710894638852,-1023231.08503405,0.00014397,2]
[319620904,1710894638862,-245000.0,0.00014398,2]
[319620905,1710894638871,-500.0,0.00014398,2]
[319620906,1710894638880,-2054.5476,0.00014398,2]
[319620907,1710894638889,-5379.9805,0.00014399,2]
[319620908,1710894638898,-1312.25779523,0.00014399,2]
[319620909,1710894638907,-1770.26564201,0.00014401,2]
[319620910,1710894638916,-1022.14,0.00014415,2]
[319620911,1710894638925,-210.0,0.00014422,2]
[319620912,1710894638934,-1022.14,0.00014451,2]
[319620913,1710894638943,-1770.26564201,0.00014452,2]
[319620914,1710894638964,-1022.14,0.00014488,2]
[319620915,1710894638973,-836.86932583,0.00014489,2]
[319620916,1710894638983,-19538.0882,0.00014499,2]
[319620917,1710894638992,-100000.0,0.00014499,2]
[319620918,1710894639002,-198389.0121,0.00014499,2]
[319620919,1710894639011,-6172.9296,0.00014499,2]
[319620920,1710894639020,-1000.0,0.00014499,2]
[319620921,1710894639030,-3637.83971139,0.000145,2]
[319620922,1710894639041,-1770.26564201,0.00014503,2]
[319620923,1710894639050,-4653.16806387,0.00014503,2]
[319620924,1710894639059,-3574.91712351,0.00014503,2]
[319620925,1710894639067,-260.49820869,0.00014503,2]
[319620926,1710894639077,-1022.14,0.00014525,2]
[319620927,1710894639086,-1022.14,0.00014561,2]
[319620928,1710894639096,-836.86932583,0.0001459,2]
[319620929,1710894639105,-170.06973904,0.00014597,2]
[319620930,1710894639115,-292.53427864,0.00014597,2]
[319620931,1710894639125,-155.0,0.00014597,2]
[319620932,1710894639135,-155.45642114,0.00014597,2]
[319620933,1710894639145,-295.83829548,0.00014597,2]
[319620934,1710894639154,-547.52168762,0.00014597,2]
[319620935,1710894639163,-164.87044309,0.00014597,2]
[319620936,1710894639173,-198.72663122,0.00014597,2]
[319620937,1710894639183,-155.0,0.00014597,2]
[319620938,1710894639192,-423.79683076,0.00014597,2]
[319620939,1710894639202,-155.0,0.00014597,2]
[319620940,1710894639213,-197.59547689,0.00014597,2]
[319620941,1710894639223,-244.77108338,0.00014597,2]
[319620942,1710894639232,-307.50266702,0.00014597,2]
[319620943,1710894639244,-361.22596683,0.00014597,2]
[319620944,1710894639254,-160.0,0.00014597,2]
[319620945,1710894639263,-276.60587858,0.00014597,2]
[319620946,1710894639274,-475.24574317,0.00014597,2]
[319620947,1710894639286,-3940.59397657,0.00014597,2]
[319620948,1710894639295,-1059.50815106,0.00014597,2]
[319620949,1710894639304,-1998.52486179,0.00014597,2]
[319620950,1710894639314,-202.46413599,0.00014597,2]
[319620951,1710894639323,-155.0,0.00014597,2]
[319620952,1710894639333,-155.0,0.00014597,2]
[319620953,1710894639342,-155.0,0.00014597,2]
[319620954,1710894639352,-174.81472275,0.00014597,2]
[319620955,1710894639361,-171.97278319,0.00014597,2]
[319620956,1710894639370,-168.96816735,0.00014597,2]
[319620957,1710894639379,-155.93061686,0.00014597,2]
[319620958,1710894639388,-709.85562431,0.00014597,2]
[319620959,1710894639398,-199.56939853,0.00014597,2]
[319620960,1710894639409,-156.30363875,0.00014597,2]
[319620961,1710894639418,-269.88806193,0.00014597,2]
[319620962,1710894639427,-204.14806604,0.00014597,2]
[319620963,1710894639437,-551.62193531,0.00014597,2]
[319620964,1710894639446,-782.44379715,0.00014597,2]
[319620965,1710894639455,-340.72393497,0.00014597,2]
[319620966,1710894639465,-155.0,0.00014597,2]
[319620967,1710894639474,-294.29767343,0.00014597,2]
[319620968,1710894639483,-8914.01658493,0.00014597,2]
[319620969,1710894639493,-200.13954254,0.00014597,2]
[319620970,1710894639502,-197.64281249,0.00014597,2]
[319620971,1710894639511,-658.74639374,0.00014597,2]
[319620972,1710894639521,-155.44212634,0.00014597,2]
[319620973,1710894639534,-155.62861415,0.00014597,2]
[319620974,1710894639543,-196.44735688,0.00014597,2]
[319620975,1710894639553,-172.79108969,0.00014597,2]
[319620976,1710894639563,-400.0,0.00014597,2]
[319620977,1710894639572,-199.78786339,0.00014597,2]
[319620978,1710894639582,-155.0,0.00014597,2]
[319620979,1710894639591,-272.63489704,0.00014597,2]
[319620980,1710894639601,-1245.62377236,0.00014597,2]
[319620981,1710894639610,-5350.53346211,0.00014597,2]
[319620982,1710894639620,-2290.10217254,0.00014597,2]
[319620983,1710894639629,-2071.7102928,0.00014597,2]
[319620984,1710894639639,-194.58762539,0.00014597,2]
[319620985,1710894639649,-155.4665216,0.00014597,2]
[319620986,1710894639659,-440.47818281,0.00014597,2]
[319620987,1710894639668,-155.4366584,0.00014597,2]
[319620988,1710894639678,-174.07301397,0.00014597,2]
[319620989,1710894639687,-498.68481426,0.00014597,2]
[319620990,1710894639696,-2162.89736187,0.00014597,2]
[319620991,1710894639706,-3357.28127037,0.00014597,2]
[319620992,1710894639715,-303.26560719,0.00014597,2]
[319620993,1710894639725,-524.6597141,0.00014597,2]
[319620994,1710894639734,-174.25787946,0.00014597,2]
[319620995,1710894639744,-199.14311995,0.00014597,2]
[319620996,1710894639753,-2971.50645971,0.00014598,2]
[319620997,1710894639762,-155.0,0.00014598,2]
[319620998,1710894639772,-190.56209382,0.00014598,2]
[319620999,1710894639784,-1022.14,0.00014598,2]
[319621000,1710894639793,-1662929.37506547,0.000146,2]
[319621001,1710894639802,-8326.0,0.00014603,2]
[319621002,1710894639811,-564.04,0.00014633,2]
[319621003,1710894639821,-1022.14,0.00014635,2]
[319621004,1710894639830,-532.09,0.00014682,2]
[319621005,1710894639839,-178.31,0.00014696,2]
[319621006,1710894639848,-180.67837664,0.0001497,2]
[319621007,1710894639858,-1130.19480753,0.00015,2]
[319621008,1710894639867,-2986.69582095,0.00015,2]
[319621009,1710894639877,-356.38,0.00015244,2]
[319621010,1710894639886,-268.02,0.00015703,2]
[319621011,1710894639895,-3870.6,0.00015843,2]
[319621012,1710894639904,-293.0,0.00015864,2]
[319621013,1710894639913,-161.55,0.00015966,2]
[319621014,1710894639924,-564.04,0.00016258,2]
[319621015,1710894639933,-167.48,0.00016259,2]
[319621017,1710894639943,-532.09,0.00016313,2]
[319621020,1710894639952,-14149.80807113,0.00017,5]
[319621021,1710894639962,-163.52,0.00017442,2]
[319621023,1710894639971,-268.02,0.00017448,2]
[319621025,1710894639981,-233.0,0.0001745,2]
[319621026,1710894639990,-209.28,0.00017808,10]
[319621027,1710894640001,-564.04,0.00017884,2]
[319621028,1710894640011,-532.09,0.00017944,2]
[319621029,1710894640021,-5947.9782733,0.00018444,2]
[319621030,1710894640030,-3870.6,0.00018583,2]
[319621031,1710894640046,-168.17,0.00019,2]
[319621032,1710894640055,-1156.58,0.00019178,2]
[319621033,1710894640065,-204.81,0.00019178,2]
[319621034,1710894640074,-268.02,0.00019193,2]
[319621035,1710894640083,-564.04,0.0001951,2]
[319621036,1710894640092,-209.28,0.00019553,10]
[319621037,1710894640101,-532.09,0.00019576,2]
[319621038,1710894640110,-5000.0,0.0002,2]
[319621039,1710894640119,-388.97308632,0.0002,2]
[319621040,1710894640129,-1312.25779521,0.00020185,2]
[319621041,1710894640138,-3637.83971139,0.00020271,2]
[319621042,1710894640147,-161.55,0.00020745,2]
[319621043,1710894640156,-268.02,0.00020938,2]
[319621044,1710894640165,-4545.99867451,0.00021,2]
[319621045,1710894640174,-1577.19,0.00021096,2]
[319621046,1710894640183,-1964.86,0.00021096,2]
[319621047,1710894640192,-158.24,0.00021918,10]
[319621048,1710894640389,-250.0,0.00021918,2]
[319621049,1710894640399,-155.27362601,0.00022,2]
[319621050,1710894640408,-779.74941329,0.00022,2]
[319621051,1710894640417,-5947.9782733,0.00022589,2]
[319621052,1710894640426,-250.0,0.00023,3]
[319621053,1710894640435,-167.48,0.00024389,2]
[319621054,1710894640444,-800.0,0.00024986,2]
[319621055,1710894640454,-1177.64718999,0.00025,2]
[319621056,1710894640463,-300.0,0.00025,3]
[319621057,1710894640472,-158.24,0.00025079,10]
[319621058,1710894640481,-161.55,0.00025524,2]
[319621059,1710894640490,-521.0,0.000256,3]
[319621060,1710894640500,-887.0,0.000256,3]
[319621061,1710894640509,-1312.25779521,0.00025971,2]
[319621062,1710894640519,-3637.83971139,0.00026043,3]
[319621063,1710894640529,-5947.9782733,0.00026735,2]
[319621064,1710894640541,-384.42617265,0.00026772,2]
[319621065,1710894640550,-350.0,0.00027,3]
[319621066,1710894640559,-150.0,0.00027212,2]
[319621067,1710894640567,-150.0,0.0002735,2]
[319621068,1710894640576,-250.0,0.00027397,2]
[319621069,1710894640585,-155.0,0.00027397,2]
[319621070,1710894640594,-33727.62334926,0.0002752,2]
[319621071,1710894640604,-300.0,0.00027768,15]
[319621072,1710894640613,-2000.0,0.00027768,2]
[319621073,1710894640622,-1012.68874826,0.00027768,15]
[319621074,1710894640632,-9532.006,0.00027768,7]
[319621075,1710894640642,-174.92292676,0.00027768,2]
[319621076,1710894640651,-1318.45049339,0.0002779,2]
[319621077,1710894640660,-2000.0,0.0002779,2]
[319621078,1710894640669,-200.0,0.0002779,2]
[319621079,1710894640678,-2000.0,0.00028068,2]
[319621080,1710894640687,-200.0,0.00028068,2]
[319621081,1710894640696,-158.24,0.0002824,10]
[319621082,1710894640705,-2000.0,0.00028349,2]
[319621083,1710894640714,-400.0,0.00029,3]
[319621084,1710894640724,-800.0,0.00029014,2]
[319621085,1710894640733,-338.59873383,0.000299,2]
[319621086,1710894640742,-338.59873353,0.000299,2]
[319621087,1710894640751,-338.59873353,0.000299,2]
[319621088,1710894640761,-338.59873353,0.000299,2]
[319621089,1710894640770,-338.59873353,0.000299,2]
[319621090,1710894640778,-338.59873353,0.000299,2]
[319621091,1710894640790,-338.59873353,0.000299,2]
[319621092,1710894640799,-338.59873353,0.000299,2]
[319621093,1710894640809,-338.59873353,0.000299,2]
[319621094,1710894640818,-338.59873353,0.000299,2]
[319621095,1710894640827,-338.59873353,0.000299,2]
[319621096,1710894640836,-338.59873353,0.000299,2]
[319621097,1710894640846,-338.59873353,0.000299,2]
[319621098,1710894640856,-338.59873353,0.000299,2]
[319621099,1710894640865,-338.59873353,0.000299,2]
[319621100,1710894640875,-338.59873353,0.000299,2]
[319621101,1710894640884,-338.59873353,0.000299,2]
[319621102,1710894640893,-338.59873353,0.000299,2]
[319621103,1710894640902,-338.59873353,0.000299,2]
[319621104,1710894640911,-338.59873353,0.000299,2]
[319621105,1710894640920,-338.59873353,0.000299,2]
[319621106,1710894640930,-338.59873353,0.000299,2]
[319621107,1710894640939,-338.59873353,0.000299,2]
[319621108,1710894640949,-338.59873353,0.000299,2]
[319621109,1710894640959,-338.59873353,0.000299,2]
[319621110,1710894640968,-338.59873353,0.000299,2]
[319621111,1710894640978,-338.59873353,0.000299,2]
[319621112,1710894640987,-166.46,0.00029984,120]
[319621113,1710894640996,-1051.52623663,0.0002999,2]
[319621114,1710894641006,-117584.94403146,0.00029998,2]
[319621115,1710894641015,-1098.6591993,0.0003,4]
[319621116,1710894641024,-9435.0,0.0003,4]
[319621117,1710894641037,-959.45695564,0.0003,2]